Workbook

Sheet ROA REQ 4 Cap (hidden)
A1: Current Assets: | B1: 31845
A2: Current Net Cap $: | B2: 1637
A3: Current Net Cap %: | B3: =B2/B1 -> 0.05140524415
A4: Target Net Cap %: | B4: 0.0565
C6: To Achieve Net Capital Ratio of | D6: =B4 -> 0.0565
B8: Asset Size | C8: ROA | D8: Cap $
B9: 34000 | C9: =(D9-$B$2)/(($B$1+B9)/2) -> 0.008626319386 | D9: =B9*$B$4 -> 1921
B10: 33000 | C10: 0.007016732208 | D10: 1864.5
B11: 32000 | C11: 0.005356723314 | D11: 1808
B12: =B1 -> 31845 | C12: 0.005094755849 | D12: 1799.2425
B13: 31000 | C13: 0.003643885751 | D13: 1751.5
B14: 30000 | C14: 0.001875656884 | D14: 1695
B15: 29000 | C15: 4.930561262e-05 | D15: 1638.5
A17: -- TOTAL ROA & Capital for CU --
B20: 1999-12-31 | C20: 2000-01-01 | D20: 2000-02-01 | E20: 2000-03-01 | F20: 2000-04-01 | G20: 2000-05-01 | H20: 2000-06-01 | I20: 2000-07-01 | J20: 2000-08-01 | K20: 2000-09-01 | L20: 2000-10-01 | M20: 2000-11-01 | N20: 2000-12-01
A21: Assets | B21: =B1 -> 31845 | C21: =B21 -> 31845 | D21: =C21 -> 31845 | E21: =D21 -> 31845 | F21: 31845 | G21: 31845 | H21: 31845 | I21: 31845 | J21: 31845 | K21: 31845 | L21: 31845 | M21: 31845 | N21: 31845
A22: Loss/Sale | C22: 0 | D22: 0 | E22: 0 | F22: 0 | G22: 0 | H22: 0 | I22: 0 | J22: 0 | K22: 0 | L22: 0 | M22: 0 | N22: 0
A23: ROA-w/o Loss | C23: 0.01 | D23: =C23 -> 0.01 | E23: =D23 -> 0.01 | F23: 0.01 | G23: 0.01 | H23: 0.01 | I23: 0.01 | J23: 0.01 | K23: 0.01 | L23: 0.01 | M23: 0.01 | N23: 0.01
A24: Income-w/o Loss | C24: =C23*C21/365*C27 -> 27.04643836 | D24: 25.30150685 | E24: 27.04643836 | F24: 26.1739726 | G24: 27.04643836 | H24: 26.1739726 | I24: 27.04643836 | J24: 27.04643836 | K24: 26.1739726 | L24: 27.04643836 | M24: 26.1739726 | N24: 27.04643836
A25: Capital | B25: =B2 -> 1637 | C25: =B25+C22+C24 -> 1664.046438 | D25: =C25+D22+D24 -> 1689.347945 | E25: 1716.394384 | F25: 1742.568356 | G25: 1769.614795 | H25: 1795.788767 | I25: 1822.835205 | J25: 1849.881644 | K25: 1876.055616 | L25: 1903.102055 | M25: 1929.276027 | N25: 1956.322466
A26: Cap % | B26: =B25/B21 -> 0.05140524415 | C26: =C25/C21 -> 0.05225455922 | D26: 0.05304907977 | E26: 0.05389839484 | F26: 0.05472031264 | G26: 0.05556962771 | H26: 0.05639154552 | I26: 0.05724086059 | J26: 0.05809017566 | K26: 0.05891209347 | L26: 0.05976140853 | M26: 0.06058332634 | N26: 0.06143264141
A27: Days | C27: 31 | D27: 29 | E27: 31 | F27: 30 | G27: 31 | H27: 30 | I27: 31 | J27: 31 | K27: 30 | L27: 31 | M27: 30 | N27: 31
A28: Cmltive Days | C28: =SUM($C$27:C27) -> 31 | D28: =SUM($C$27:D27) -> 60 | E28: =SUM($C$27:E27) -> 91 | F28: =SUM($C$27:F27) -> 121 | G28: =SUM($C$27:G27) -> 152 | H28: =SUM($C$27:H27) -> 182 | I28: =SUM($C$27:I27) -> 213 | J28: =SUM($C$27:J27) -> 244 | K28: =SUM($C$27:K27) -> 274 | L28: =SUM($C$27:L27) -> 305 | M28: =SUM($C$27:M27) -> 335 | N28: =SUM($C$27:N27) -> 366
A29: Wgtd Assets | C29: =C21 -> 31845 | D29: =SUM($C$21:D21) -> 63690 | E29: =SUM($C$21:E21) -> 95535 | F29: =SUM($C$21:F21) -> 127380 | G29: =SUM($C$21:G21) -> 159225 | H29: =SUM($C$21:H21) -> 191070 | I29: =SUM($C$21:I21) -> 222915 | J29: =SUM($C$21:J21) -> 254760 | K29: =SUM($C$21:K21) -> 286605 | L29: =SUM($C$21:L21) -> 318450 | M29: =SUM($C$21:M21) -> 350295 | N29: =SUM($C$21:N21) -> 382140
C30: 1 | D30: 2 | E30: 3 | F30: 4 | G30: 5 | H30: 6 | I30: 7 | J30: 8 | K30: 9 | L30: 10 | M30: 11 | N30: 12
C31: =C29/C30 -> 31845 | D31: 31845 | E31: 31845 | F31: 31845 | G31: 31845 | H31: 31845 | I31: 31845 | J31: 31845 | K31: 31845 | L31: 31845 | M31: 31845 | N31: 31845
A33: (After Losses YTD)
A34: Cumulative Net Inc | C34: =C22+C24 -> 27.04643836 | D34: =D22+D24+C34 -> 52.34794521 | E34: 79.39438356 | F34: 105.5683562 | G34: 132.6147945 | H34: 158.7887671 | I34: 185.8352055 | J34: 212.8816438 | K34: 239.0556164 | L34: 266.1020548 | M34: 292.2760274 | N34: 319.3224658
A35: Cumulative ROA | C35: =C34/C31/C28*366 -> 0.01002739726 | D35: 0.01002739726 | E35: 0.01002739726 | F35: 0.01002739726 | G35: 0.01002739726 | H35: 0.01002739726 | I35: 0.01002739726 | J35: 0.01002739726 | K35: 0.01002739726 | L35: 0.01002739726 | M35: 0.01002739726 | N35: 0.01002739726

Sheet Bal Adj Type 5 (hidden)
A1: PURPOSE: Increase or Decrease Treasury/Purch CD/CDs < 1 Yr Maturity Runoffs Proportionately
A3: INSTRUCTIONS: 1) In the model, highlight 'RO16'/'M1' to 'RO25'/'M12' 2) Copy the selection (Hold down 'Ctrl' and hit 'C')
A4: 3) In Excel, highlight 'A8', and Paste the selection (Hold down 'Ctrl' and hit 'V') 4) Go to 'D22" and enter desired balance change
A5: 5) Highlight 'A26' to 'L35' 6) Copy the selection 7) In the Decision Model, highlight 'RO16'/'M1' 8) Paste the selection.
A7: ORIGINAL RUNOFF - COPY FROM MODEL
A8: 0 | B8: 0 | C8: 0 | D8: 0 | E8: 0 | F8: 0 | G8: 0 | H8: 0 | I8: 0 | J8: 0 | K8: 0 | L8: 0 | N8: =SUM(A8:M8) -> 0
A9: 0 | B9: 0 | C9: 0 | D9: 0 | E9: 0 | F9: 0 | G9: 0 | H9: 0 | I9: 0 | J9: 0 | K9: 0 | L9: 0 | N9: 0
A10: 0 | B10: 0 | C10: 0 | D10: 0 | E10: 0 | F10: 0 | G10: 0 | H10: 0 | I10: 0 | J10: 0 | K10: 0 | L10: 0 | N10: 0
A11: 0 | B11: 0 | C11: 0 | D11: 0 | E11: 0 | F11: 0 | G11: 0 | H11: 0 | I11: 0 | J11: 0 | K11: 0 | L11: 0 | N11: 0
A12: 0 | B12: 0 | C12: 0 | D12: 0 | E12: 0 | F12: 0 | G12: 0 | H12: 0 | I12: 0 | J12: 0 | K12: 0 | L12: 0 | N12: 0
A13: 0 | B13: 0 | C13: 0 | D13: 0 | E13: 0 | F13: 0 | G13: 0 | H13: 0 | I13: 0 | J13: 0 | K13: 0 | L13: 0 | N13: 0
A14: 0 | B14: 0 | C14: 0 | D14: 0 | E14: 0 | F14: 0 | G14: 0 | H14: 0 | I14: 0 | J14: 0 | K14: 0 | L14: 0 | N14: 0
A15: 0 | B15: 0 | C15: 0 | D15: 0 | E15: 0 | F15: 0 | G15: 0 | H15: 0 | I15: 0 | J15: 0 | K15: 0 | L15: 0 | N15: 0
A16: 0 | B16: 0 | C16: 0 | D16: 0 | E16: 0 | F16: 0 | G16: 0 | H16: 0 | I16: 0 | J16: 0 | K16: 0 | L16: 0 | N16: 0
A17: 0 | B17: 0 | C17: 0 | D17: 0 | E17: 0 | F17: 0 | G17: 0 | H17: 0 | I17: 0 | J17: 0 | K17: 0 | L17: 0 | N17: 0
A18: 0
N19: =SUM(N8:N17) -> 0
C21: Current Balance: | D21: =N19 -> 0 | F21: This # is Calculated
C22: Increase or Decrease: | D22: 0 | F22: Enter this in $000s
C23: New Balance: | D23: =D21+D22 -> 0 | F23: This # is Calculated
A25: ADJUSTED RUNOFF - COPY TO MODEL
A26: =A8/$D$21*$D$23 -> 
A27: =A9/$D$21*$D$23 -> 
A28: =A10/$D$21*$D$23 -> 
A29: =A11/$D$21*$D$23 -> 
A30: =A12/$D$21*$D$23 -> 
A31: =A13/$D$21*$D$23 -> 
A32: =A14/$D$21*$D$23 -> 
A33: =A15/$D$21*$D$23 -> 
A34: =A16/$D$21*$D$23 -> 
A35: =A17/$D$21*$D$23 -> 

Sheet ROA
A1: Strategy Lever Calculator
C2: % Assets | E2: Rate | F2: Contribution
B3: Loans | C3: 0.6415 | E3: 0.0566 | F3: =E3*C3 -> 0.0363089
B4: Investments | C4: =1-C3-C5 -> 0.2054 | E4: 0.0486 | F4: =E4*C4 -> 0.00998244 | H4: Cost of Funds Calculation
B5: Non-Earning Assets | C5: 0.1531 | E5: 0 | F5: =E5*C5 -> 0 | I5: % of Funds | J5: Rate | K5: COF
B6: Total Assets | C6: 1 | E6: =F6/C6 -> 0.04629134 | F6: =SUM(F3:F5) -> 0.04629134 | H6: Non-Maturity | I6: =1-I7-I8-I9 -> 0.64 | J6: 0.002 | K6: =I6*J6 -> 0.00128 | M6: =J6*I6 -> 0.00128
H7: CDs | I7: 0.12 | J7: 0.035 | K7: =I7*J7 -> 0.0042 | M7: =J7*I7 -> 0.0042
H8: Borrowings | I8: 0.12 | J8: 0.028 | M8: =J8*I8 -> 0.00336
B9: Cost of Funds | C9: 1 | E9: =IF(I11>0,I11,M9) -> 0.0103 | F9: =E9*C9 -> 0.0103 | H9: Net Worth | I9: 0.12 | K9: =SUM(K6:K7)/SUM(I6:I9) -> 0.00548 | M9: =SUM(M6:M8) -> 0.00884
B11: Net Interest Margin | E11: =E6-E9 -> 0.03599134 | F11: =F6-F9 -> 0.03599134 | H11: COF Override | I11: 0.0103
B13: Operating Expense | E13: 0.0419
B14: Expected Credit Loss | E14: 0.0031
B15: Fee/Other Income | E15: 0.016
B16: Net Operating Expense | E16: =E13+E14-E15 -> 0.029 | F16: =SUM(F13:F15) -> 0 | H16: Base ROA
I17: Set Base ROA
B18: Return on Assets | E18: =E11-E16 -> 0.00699134 | F18: =F11-F16 -> 0.03599134 | H18: 0.00802
A21: When calculating cost of funds, you can either manually adjust line items or you can choose to override the detailed input with an average rate.
A22: Once you arrive at a baseline ROA, click the Set Base ROA button to store it.
A23: Then, you can perform what-ifs to see the impact.

Sheet Growth & Capital (hidden)
B3: Starting | J3: Growth | K3: Average
B4: Net Worth | C4: Growth | D4: New | G4: ROA | J4: =C10-C9 ->  | K4: =(C9+C10)/2 -> 
B5: =#REF! ->  | C5: =#REF! ->  | G5: =#REF! ->  | J5: Net Income
C8: Assets | D8: Net Inc | E8: Net Worth | G8: Net Worth %
B9: Base | C9: =#REF! ->  | G9: =B5/C9 -> 
B10: Yr 1 | C10: =C9*(1+C5) ->  | D10: =K4*G5 ->  | E10: =D10+B5 ->  | G10: =E10/C10 -> 
B11: Yr 2 | C11: =C10*(1+$C$5) ->  | D11: =((C10+C11)/2)*$G$5 ->  | E11: =D11+E10 ->  | G11: =E11/C11 -> 
B12: Yr 3 | C12: =C11*(1+$C$5) ->  | D12: =((C11+C12)/2)*$G$5 ->  | E12: =D12+E11 ->  | G12: =E12/C12 -> 
B13: Yr 4 | C13: =C12*(1+$C$5) ->  | D13: =((C12+C13)/2)*$G$5 ->  | E13: =D13+E12 ->  | G13: =E13/C13 -> 

Sheet NCUA FPR Agg Ratios (hidden)
C1: Ratio Analysis
A2: Return to cover | C2: For Charter : | D2: N/A
A3: 02/26/2014 | C3: Count of CU : | D3: 6554
A4: CU Name: N/A | C4: Asset Range : | D4: N/A
A5: Peer Group: N/A | C5: Criteria : | D5: Region: Nation * Peer Group: All * Types Included: All Federally Insured Credit Unions (FICUs) *
C6: Count of CU in Peer Group : | D6: N/A | F6: 2013-09-30
B8: 2012-12-31 | C8: 2013-03-31 | D8: 2013-06-30 | E8: 2013-09-30 | F8: PEER Avg | G8: Percentile** | H8: 2015-09-30 | J8: =CONCATENATE(TEXT(H8,"MM/DD/YY")," Reformatted") -> 09/30/15 Reformatted
A9: CAPITAL ADEQUACY
A10: Net Worth/Total Assets | B10: 10.43 | C10: 10.3 | D10: 10.5 | E10: 10.65 | F10: N/A | G10: N/A | H10: 10.99 | J10: =H10/100 -> 0.1099
A11: Net Worth/Total Assets--Including Optional Total Assets Election (if used) | B11: 10.46 | C11: 10.35 | D11: 10.54 | E11: 10.68 | F11: N/A | G11: N/A | H11: 11.03 | J11: =H11/100 -> 0.1103
A12: Total Delinquent Loans / Net Worth 3 | B12: 6.489201456 | C12: 5.605808661 | D12: 5.746704591 | E12: 5.700931926 | F12: N/A | G12: N/A | H12: 4.611046442 | J12: 0.04611046442
A13: Solvency Evaluation (Estimated) | B13: 112.148692 | C13: 111.922962 | D13: 111.8861973 | E13: 112.0688379 | F13: N/A | G13: N/A | H13: 112.9261637 | J13: 1.129261637
A14: Classified Assets (Estimated) / Net Worth | B14: 7.623748303 | C14: 7.265869728 | D14: 6.946504536 | E14: 6.710859125 | F14: N/A | G14: N/A | H14: 5.487372643 | J14: 0.05487372643
A15: ASSET QUALITY | J15: 0
A16: Delinquent Loans / Total Loans 3 | B16: 1.157954006 | C16: 1.01648422 | D16: 1.03899644 | E16: 1.016562926 | F16: N/A | G16: N/A | H16: 0.7780333957 | J16: 0.007780333957
A17: * Net Charge-Offs / Average Loans | B17: 0.7297042897 | C17: 0.6139235434 | D17: 0.5813113362 | E17: 0.5604259367 | F17: N/A | G17: N/A | H17: 0.4615808453 | J17: 0.004615808453
A18: Fair (Market) HTM Invest Value/Book Value HTM Invest. | B18: 100.8199876 | C18: 100.7374289 | D18: 99.40562345 | E18: 99.61760046 | F18: N/A | G18: N/A | H18: 101.0314028 | J18: 1.010314028
A19: Accum Unreal G/L On AFS/Cost Of AFS | B19: 1.417296954 | C19: 1.176413029 | D19: -0.3427841117 | E19: -0.6233096059 | F19: N/A | G19: N/A | H19: 0.3898336489 | J19: 0.003898336489
A20: Delinquent Loans / Assets 3 | B20: 0.6771620547 | C20: 0.5777526837 | D20: 0.6037821319 | E20: 0.6075757666 | F20: N/A | G20: N/A | H20: 0.507166782 | J20: 0.00507166782
A21: EARNINGS
A22: * Return On Average Assets | B22: 0.8531276073 | C22: 0.8285622183 | D22: 0.8448659081 | E22: 0.7985492916 | F22: N/A | G22: N/A | H22: 0.7977367102 | J22: 0.007977367102
A23: * Return On Average Assets Excluding Stabilization Income/Expense & NCUSIF Premium 2 | B23: 0.931752427 | C23: 0.8625434951 | D23: 0.8794681771 | E23: 0.8821490828 | F23: N/A | G23: N/A | H23: 0.7983231039 | J23: 0.007983231039
A24: * Gross Income/Average Assets | B24: 5.083373228 | C24: 4.727245055 | D24: 4.752489354 | E24: 4.76143976 | F24: N/A | G24: N/A | H24: 4.704839412 | J24: 0.04704839412
A25: * Yield on Average Loans | B25: 5.417710013 | C25: 5.159496612 | D25: 5.099061505 | E25: 5.046295 | F25: N/A | G25: N/A | H25: 4.644758046 | J25: 0.04644758046
A26: * Yield on Average Investments | B26: 1.267444595 | C26: 1.054837479 | D26: 1.071783403 | E26: 1.103497926 | F26: N/A | G26: N/A | H26: 1.241012732 | J26: 0.01241012732
A27: * Fee & Other Op.Income / Avg. Assets | B27: 1.431989226 | C27: 1.358803385 | D27: 1.386939269 | E27: 1.381547412 | F27: N/A | G27: N/A | H27: 1.337897024 | J27: 0.01337897024
A28: * Cost of Funds / Avg. Assets | B28: 0.7295991 | C28: 0.6066942932 | D28: 0.5988440238 | E28: 0.5923809945 | F28: N/A | G28: N/A | H28: 0.5106263677 | J28: 0.005106263677
A29: * Net Margin / Avg. Assets | B29: 4.353774128 | C29: 4.120550762 | D29: 4.15364533 | E29: 4.169058765 | F29: N/A | G29: N/A | H29: 4.194213045 | J29: 0.04194213045
A30: * Operating Exp./ Avg. Assets | B30: 3.183231278 | C30: 3.069096508 | D30: 3.092842118 | E30: 3.146726395 | F30: N/A | G30: N/A | H30: 3.113927633 | J30: 0.03113927633
A31: * Provision For Loan & Lease Losses / Average Assets | B31: 0.3606699307 | C31: 0.2676991242 | D31: 0.2568568695 | E31: 0.2605404799 | F31: N/A | G31: N/A | H31: 0.316947526 | J31: 0.00316947526
A32: * Net Interest Margin/Avg. Assets | B32: 2.921784902 | C32: 2.761747377 | D32: 2.766706062 | E32: 2.787511354 | F32: N/A | G32: N/A | H32: 2.856316021 | J32: 0.02856316021
A33: Operating Exp./Gross Income | B33: 62.62045172 | C33: 64.9235754 | D33: 65.07835974 | E33: 66.08770779 | F33: N/A | G33: N/A | H33: 66.18563059 | J33: 0.6618563059
A34: Fixed Assets & Foreclosed & Repossessed Assets / Total Assets 1 | B34: 2.379684846 | C34: 2.310637679 | D34: 2.309084853 | E34: 2.31978351 | F34: N/A | G34: N/A | H34: 2.229391371 | J34: 0.02229391371
A35: * Net Operating Exp. /Avg. Assets | B35: 2.439886668 | C35: 2.382236193 | D35: 2.390199811 | E35: 2.42759162 | F35: N/A | G35: N/A | H35: 2.471116978 | J35: 0.02471116978
A36: ASSET / LIABILITY MANAGEMENT
A37: Net Long-Term Assets / Total Assets | B37: 32.9204272 | C37: 33.50011526 | D37: 34.89792844 | E37: 35.7513658 | F37: N/A | G37: N/A | H37: 32.40328714 | J37: 0.3240328714
A38: Reg. Shares / Total Shares & Borrowings | B38: 30.41692974 | C38: 31.36686733 | D38: 31.64218076 | E38: 31.58646877 | F38: N/A | G38: N/A | H38: 33.24032856 | J38: 0.3324032856
A39: Total Loans / Total Shares | B39: 68.06274816 | C39: 65.92242373 | D39: 67.47637243 | E39: 69.7080986 | F39: N/A | G39: N/A | H39: 77.52950514 | J39: 0.7752950514
A40: Total Loans / Total Assets | B40: 58.47918408 | C40: 56.83833276 | D40: 58.11205009 | E40: 59.76764948 | F40: N/A | G40: N/A | H40: 65.1857343 | J40: 0.651857343
A41: Cash + Short-Term Investments / Assets | B41: 17.4907186 | C41: 18.50064879 | D41: 16.50325259 | E41: 15.1866948 | F41: N/A | G41: N/A | H41: 13.18740992 | J41: 0.1318740992
A42: Total Shares, Dep. & Borrs / Earning Assets | B42: 93.22529025 | C42: 93.27017269 | D42: 93.35055582 | E42: 93.2348452 | F42: N/A | G42: N/A | H42: 92.98318396 | J42: 0.9298318396
A43: Reg Shares + Share Drafts / Total Shares & Borrs | B43: 42.73531723 | C43: 44.35961405 | D43: 44.36367147 | E43: 44.09527308 | F43: N/A | G43: N/A | H43: 46.52713365 | J43: 0.4652713365
A44: Borrowings / Total Shares & Net Worth | B44: 2.700966704 | C44: 2.474626276 | D44: 2.567681024 | E44: 2.894977996 | F44: N/A | G44: N/A | H44: 4.175032457 | J44: 0.04175032457
A45: Supervisory Interest Rate Risk Threshold / Net Worth | B45: 260.1255039 | C45: 263.874899 | D45: 269.6253692 | E45: 273.982099 | F45: N/A | G45: N/A | H45: 267.0642741 | J45: 2.670642741
A46: PRODUCTIVITY
A47: Members / Potential Members | B47: 5.762782819 | C47: 5.688232344 | D47: 5.638661165 | E47: 5.558095579 | F47: N/A | G47: N/A | H47: 5.096629134 | J47: 0.05096629134
A48: Borrowers / Members | B48: 50.68656978 | C48: 49.9557782 | D48: 50.67243004 | E48: 51.45987629 | F48: N/A | G48: N/A | H48: 55.66491953 | J48: 0.5566491953
A49: Members / Full-Time Employees | B49: 384.1289596 | C49: 385.6316791 | D49: 383.7759057 | E49: 385.5647237 | F49: N/A | G49: N/A | H49: 385.9665721 | J49: 3.859665721
A50: Avg. Shares Per Member | B50: 9357.68273 | C50: 9615.549141 | D50: 9554.580242 | E50: 9444.768696 | F50: N/A | G50: N/A | H50: 9716.908304 | J50: 97.16908304
A51: Avg. Loan Balance | B51: 12565.64817 | C51: 12688.82855 | D51: 12723.06093 | E51: 12793.98465 | F51: N/A | G51: N/A | H51: 13533.60606 | J51: 135.3360606
A52: * Salary And Benefits / Full-Time Empl. | B52: 63493.841 | C52: 65620.79844 | D52: 64953.69348 | E52: 64845.16612 | F52: N/A | G52: N/A | H52: 68550.22917 | J52: 685.5022917
A53: OTHER RATIOS
A54: * Net Worth Growth | B54: 8.525782743 | C54: 8.043202629 | D54: 8.119602559 | E54: 7.480613412 | F54: N/A | G54: N/A | H54: 7.367677516 | J54: 0.07367677516
A55: * Market (Share) Growth | B55: 6.102701359 | C55: 14.59126086 | D55: 7.193252325 | E55: 4.255616403 | F55: N/A | G55: N/A | H55: 5.844890683 | J55: 0.05844890683
A56: * Loan Growth | B56: 4.554921383 | C56: 1.553882414 | D56: 5.408236329 | E56: 7.581694834 | F56: N/A | G56: N/A | H56: 10.69354843 | J56: 0.1069354843
A57: * Asset Growth | B57: 6.245791579 | C57: 13.14623889 | D57: 6.705942117 | E57: 4.543861826 | F57: N/A | G57: N/A | H57: 6.929438967 | J57: 0.06929438967
A58: * Investment Growth | B58: 8.459707177 | C58: 32.26645522 | D58: 8.557097718 | E58: -0.3286125651 | F58: N/A | G58: N/A | H58: -1.109297332 | J58: -0.01109297332
A59: * Membership Growth | B59: 2.167223074 | C59: 3.472898425 | D59: 2.923484843 | E59: 2.98697055 | F59: N/A | G59: N/A | H59: 3.879845107 | J59: 0.03879845107
A60: * Annualization factor: March = 4; June = 2; September =4/3; December = 1 (or no annualizing)
A61: **Percentile Rankings and Peer Average Ratios are produced once a quarter after the data collection is complete. Subsequent corrections to data after this date are not reflected in the Percentile Rank or the Peer Average Ratios until the next cycle.
A62: Percentile Rankings show where the credit union stands in relation to its peers in key areas of performance. To arrive at the percentile ranking, all data for all credit unions in a peer group are arranged in order from highest (100) to lowest (0) value. The percentile ranking assigned to the credit union is a measure of the relative standing of that ratio in the entire range of ratios. A high or low ranking does not imply good or bad performance. However, when reviewed in relation to other available data, users may draw conclusions as to the importance of the percentile rank to the credit union's financial performance.
A63: 1 For periods before 2004, the Fixed Assets & Foreclosed and Repossessed assets did not include repossessed vehicles.
A64: 2 Prior to September 2010, this ratio was named Return on Assets Prior to NCUSIF Stabilization Income/Expense. From December 2010 forward, NCUSIF Premium Expense is also excluded from ROA.
A65: 3 The NCUA Board approved a regulatory/policy change in May 2012 revising the delinquency reporting requirements for troubled debt restructured (TDR) loans. This policy change may result in a decline in delinquent loans reported as of June 2012.

Sheet NCUA FPR Liabilities (hidden)
C1: Liabilities, Shares & Equity
A2: Return to cover | C2: For Charter : | D2: N/A
A3: 02/26/2014 | C3: Count of CU : | D3: 6554
A4: CU Name: N/A | C4: Asset Range : | D4: N/A
A5: Peer Group: N/A | C5: Criteria : | D5: Region: Nation * Peer Group: All * Types Included: All Federally Insured Credit Unions (FICUs) *
C6: Count of CU in Peer Group : | D6: N/A
B8: 2012-12-31 | C8: 2013-03-31 | D8: % Chg | E8: 2013-06-30 | F8: % Chg | G8: 2013-09-30 | H8: % Chg | I8: 2015-09-30
A9: LIABILITIES, SHARES AND EQUITY
A10: LIABILITIES:
A11: Other Borrowings | B11: N/A | C11: N/A | E11: N/A | G11: N/A | I11: N/A
A12: Other Notes, Promissory Notes, Interest Payable, & Draws Against Lines of Credit | B12: 26224064854 | C12: 23130274189 | D12: -11.79752522 | E12: 24731687753 | F12: 6.923452575 | G12: 27821694844 | H12: 12.4941214 | I12: 45479840442 | L12: Borrowings/A | M12: =I12/$I$47 -> 0.03852906137
A13: Borrowing Repurchase Transactions | B13: 496537300 | C13: 2248649860 | D13: 352.8662519 | E13: 1709747788 | F13: -23.96558404 | G13: 2019293185 | H13: 18.10474031 | I13: 1921241301
A14: Subordinated Debt | B14: 9914148 | C14: 9559740 | D14: -3.574770116 | E14: 10011525 | F14: 4.725913048 | G14: 12039187 | H14: 20.2532781 | I14: 13101016
A15: Uninsured Secondary Capital and Subordinated Debt Included in Net Worth 3 | B15: 244805956 | C15: 258270350 | D15: 5.500027132 | E15: 247511482 | F15: -4.165738731 | G15: 243566961 | H15: -1.593671925 | I15: 174004493
A16: Non-Trading Derivative Liabilities, net | B16: 267490607 | C16: 244957874 | D16: -8.42374738 | E16: 198570627 | F16: -18.93682626 | G16: 204230924 | H16: 2.850520787 | I16: 110419071
A17: Accrued Dividends and Interest Payable | B17: 10193090675 | C17: 11277500866 | D17: 10.63867894 | E17: 11774861697 | F17: 4.410204325 | G17: 11252205806 | H17: -4.438743354 | I17: 185980272
A18: Accounts Payable & Other Liabilities | B18: 37435903540 | C18: 37169212879 | D18: -0.7123927454 | E18: 38672390872 | F18: 4.044148037 | G18: 41553030907 | H18: 7.448828402 | I18: 12044920249
A19: TOTAL LIABILITIES | I19: 59929506844
A21: SHARES AND DEPOSITS | B21: 111419299483 | C21: 121500019028 | D21: 9.047552436 | E21: 119032494902 | F21: -2.030883736 | G21: 117008661688 | H21: -1.700235903
A22: Share Drafts | B22: 275119856915 | C22: 293323271627 | D22: 6.616539757 | E22: 296069683008 | F22: 0.9363087237 | G22: 295463127210 | H22: -0.2048692699 | I22: 138092860721
A23: Regular Shares | B23: 203421734987 | C23: 208204029064 | D23: 2.350925813 | E23: 209021722943 | F23: 0.3927368181 | G23: 210611766000 | H23: 0.7607070857 | I23: 345474478579
A24: Money Market Shares | B24: 197877610569 | C24: 196279792800 | D24: -0.8074777962 | E24: 194291654910 | F24: -1.012910123 | G24: 192178546994 | H24: -1.087595819 | I24: 227891349365
A25: Share Certificates | B25: 79070008792 | C25: 79102141335 | D25: 0.0406380921 | E25: 79135529445 | F25: 0.04220885735 | G25: 79113441805 | H25: -0.02791115464 | I25: 189024839264 | L25: CD/A | M25: =I25/$I$47 -> 0.160135778
A26: IRA/KEOGH Accounts | B26: 8720905688 | C26: 9181039110 | D26: 5.276211422 | E26: 9365017264 | F26: 2.003892498 | G26: 8745039260 | H26: -6.62014801 | I26: 76707872362
A27: All Other Shares 1 | B27: 2274614756 | C27: 2338055055 | D27: 2.789056865 | E27: 2562854787 | F27: 9.614817731 | G27: 2803619197 | H27: 9.394383608 | I27: 9127545717
A28: Non-Member Deposits | B28: 877904031190 | C28: 909928348019 | D28: 3.647815216 | E28: 909478957259 | F28: -0.04938748869 | G28: 905924202154 | H28: -0.3908562234 | I28: 6148004431
A29: TOTAL SHARES AND DEPOSITS | I29: 992466950439
A31: EQUITY: | B31: 74139296869 | C31: 75274639822 | D31: 1.531364608 | E31: 76371993063 | F31: 1.457799391 | G31: 77207578194 | H31: 1.094098893
A32: Undivided Earnings | B32: 19268415108 | C32: 19298056091 | D32: 0.1538319723 | E32: 19333126918 | F32: 0.1817324337 | G32: 19362782027 | H32: 0.1533901325 | I32: 90726329539
A33: Regular Reserves | B33: 25889449 | C33: 26414398 | D33: 2.027656131 | E33: 28390472 | F33: 7.481048783 | G33: 27714344 | H33: -2.381531381 | I33: 19838514656
A34: Appropriation For Non-Conforming Investments (SCU Only) | B34: 11826925684 | C34: 12073824150 | D34: 2.087596326 | E34: 12471369868 | F34: 3.292624715 | G34: 12664628298 | H34: 1.549616698 | I34: 3604091
A35: Other Reserves | B35: 1075328973 | C35: 1172096257 | D35: 8.998853972 | E35: 1234609154 | F35: 5.333426894 | G35: 1278648128 | H35: 3.567037702 | I35: 14796112872
A36: Equity Acquired in Merger | B36: 17834293 | C36: 15742143 | D36: -11.73105096 | E36: 16661247 | F36: 5.838493527 | G36: 19123354 | H36: 14.77744733 | I36: 2214672962
A37: Miscellaneous Equity | B37: 2316602306 | C37: 2022535136 | D37: -12.69389956 | E37: -615456415 | F37: -130.4299492 | G37: -1099015925 | H37: -78.56925336 | I37: 7435080
A38: Accumulated Unrealized G/L on AFS Securities | B38: -30666651 | C38: -29876110 | D38: 2.577852404 | E38: -24997977 | F38: 16.327872 | G38: -27528391 | H38: -10.12247511 | I38: 640149824
A39: Accumulated Unrealized Losses for OTTI (due to other factors) on HTM Debt Securities | B39: -50239843 | C39: -45369563 | D39: 9.694058956 | E39: -26496562 | F39: 41.5983751 | G39: -23010883 | H39: 13.15521236 | I39: -9516600
A40: Accumulated Unrealized G/L on Cash Flow Hedges | B40: -2154446177 | C40: -2164945284 | D40: -0.4873227798 | E40: -2120968520 | F40: 2.031310644 | G40: -2057681354 | H40: 2.983880496 | I40: -112080415
A41: Other Comprehensive Income | B41: 0 | C41: 615438288 | D41: N/A | E41: 1215111196 | F41: 97.43834917 | G41: 1765432751 | H41: 45.28981025 | I41: -2121772267
A42: Net Income | B42: 106434940011 | C42: 108258555328 | D42: 1.71336153 | E42: 107883342444 | F42: -0.3465895909 | G42: 109118670543 | H42: 1.145059164 | I42: 2023633174
A43: EQUITY TOTAL | I43: 128007082916
B44: 984338971201 | C44: 1018186903347 | D44: 3.438645948 | E44: 1017362299703 | F44: -0.08098745341 | G44: 1015042872697 | H44: -0.2279843677
A45: TOTAL SHARES & EQUITY | I45: 1120474033355
B46: 1021774874741 | C46: 1055356116226 | D46: 3.286559722 | E46: 1056034690575 | F46: 0.06429813961 | G46: 1056595903604 | H46: 0.05314342739
A47: TOTAL LIABILITIES, SHARES, & EQUITY | I47: 1180403540199
A49: NCUA INSURED SAVINGS 2 | B49: 39652344205 | C49: 41347782396 | D49: 4.275757777 | E49: 41345435455 | F49: -0.005676098847 | G49: 43381344777 | H49: 4.924145313
A50: Uninsured Shares | B50: 213588093 | C50: 428805091 | D50: 100.7626385 | E50: 518305678 | F50: 20.87209058 | G50: 529766310 | H50: 2.211172381 | I50: 52717831181
A51: Uninsured Non-Member Deposits | B51: 39865932298 | C51: 41776587487 | D51: 4.792701635 | E51: 41863741133 | F51: 0.2086183943 | G51: 43911111087 | H51: 4.890556598 | I51: 1149028193
A52: Total Uninsured Shares & Deposits | B52: 838038098892 | C52: 868151760532 | D52: 3.59335234 | E52: 867615216126 | F52: -0.06180306605 | G52: 862013091067 | H52: -0.6456923478 | I52: 53866859374
A53: Insured Shares & Deposits | B53: 106624394132 | C53: 108768398150 | D53: 2.010800657 | E53: 110953132649 | F53: 2.00861145 | G53: 112606513178 | H53: 1.490161196 | I53: 938600091065
A54: TOTAL NET WORTH | I54: 129832018069
A55: 1 PRIOR TO JUNE 2006, INCLUDED MONEY MKT, SHARE CERTS, IRA/KEOGHs, AND NONMEMBER SHARES FOR SHORT FORM FILERS
A56: 2 PRIOR TO 10/03/08 SHARES INSURED UP TO $100,000; 10/03/08 to 05/20/09 SHARES INSURED UP TO $100,000 and $250,000 FOR IRAS; 5/20/09 AND FORWARD SHARES INSURED UP TO $250,000
A57: 3 December 2011 and forward includes "Subordinated Debt Included in Net Worth." | J57: 5. LiabShEquity

Sheet NCUA FPR Assets (hidden)
C1: Assets
A2: Return to cover | C2: For Charter : | D2: N/A
A3: 02/26/2014 | C3: Count of CU : | D3: 6554
A4: CU Name: N/A | C4: Asset Range : | D4: N/A
A5: Peer Group: N/A | C5: Criteria : | D5: Region: Nation * Peer Group: All * Types Included: All Federally Insured Credit Unions (FICUs) *
C6: Count of CU in Peer Group : | D6: N/A
B8: 2012-12-31 | C8: 2013-03-31 | D8: % Chg | E8: 2013-06-30 | F8: % Chg | G8: 2013-09-30 | H8: % Chg | I8: 2015-09-30
A9: ASSETS
A10: CASH:
A11: Cash On Hand | B11: 8269616935 | C11: 7829827728 | D11: -5.318132756 | E11: 7961821810 | F11: 1.685785264 | G11: 7889002703 | H11: -0.9146035761 | I11: 9594586356
A12: Cash On Deposit | B12: 86835930751 | C12: 104185855118 | D12: 19.98012138 | E12: 84540176438 | F12: -18.85637802 | G12: 73959111994 | H12: -12.51601888 | I12: 73803578687
A13: Cash Equivalents | B13: 5820525232 | C13: 6344615486 | D13: 9.004174591 | E13: 5424096456 | F13: -14.50866537 | G13: 4902359091 | H13: -9.61888066 | I13: 4947902956
A14: TOTAL CASH & EQUIVALENTS | B14: 100926072918 | C14: 118360298332 | D14: 17.27425323 | E14: 97926094704 | F14: -17.264407 | G14: 86750473788 | H14: -11.41230124 | I14: 88346067999
A16: INVESTMENTS:
A17: Trading Securities | B17: 1239399097 | C17: 1233124384 | D17: -0.5062705803 | E17: 1137524401 | F17: -7.752663417 | G17: 977856890 | H17: -14.03640316 | I17: 642188627
A18: Available for Sale Securities | B18: 165768749703 | C18: 173946433142 | D18: 4.93318762 | E18: 178930909382 | F18: 2.865523684 | G18: 175220410982 | H18: -2.073704545 | I18: 164851173115
A19: Held-to-Maturity Securities | B19: 54173847850 | C19: 57649598027 | D19: 6.415918963 | E19: 58997915904 | F19: 2.338815747 | G19: 58412892733 | H19: -0.9915997235 | I19: 48926763949
A20: Deposits in Commercial Banks, S&Ls, Savings Banks | B20: 47085364529 | C20: 47594133949 | D20: 1.080525605 | E20: 47736144861 | F20: 0.2983790232 | G20: 46244346500 | H20: -3.125091826 | I20: 40825799157
A21: Loans to, Deposits in, and Investments in Natural Person Credit Unions 2 | B21: 2486035469 | C21: 2467516836 | D21: -0.7449062264 | E21: 2511849627 | F21: 1.79665607 | G21: 2694877036 | H21: 7.286559157 | I21: 4864114413
A22: Total MCSD/Nonperpetual Contributed Capital and PIC/Perpetual Contributed Capital | B22: 1567025593 | C22: 1544052788 | D22: -1.466013389 | E22: 1534505341 | F22: -0.6183368259 | G22: 1509320948 | H22: -1.641205953 | I22: 1391539720
A23: All Other Investments in Corporate Cus | B23: 2321112240 | C23: 2307561631 | D23: -0.5837980933 | E23: 2269356619 | F23: -1.655644273 | G23: 2347782719 | H23: 3.455873764 | I23: 1521195371
A24: All Other Investments 2 | B24: 5785734862 | C24: 5929398276 | D24: 2.483062522 | E24: 6061386052 | F24: 2.225989381 | G24: 6123028485 | H24: 1.016969262 | I24: 7256911172
A25: TOTAL INVESTMENTS | B25: 280427269343 | C25: 292671819033 | D25: 4.366390515 | E25: 299179592187 | F25: 2.223573549 | G25: 293530516293 | H25: -1.888188914 | I25: 270279685524
A27: LOANS HELD FOR SALE | B27: 5144710451 | C27: 4383167132 | D27: -14.80245247 | E27: 4024814162 | F27: -8.175662922 | G27: 2910774935 | H27: -27.6792712 | I27: 3210418852
A29: LOANS AND LEASES:
A30: Unsecured Credit Card Loans | B30: 39519263998 | C30: 38617714249 | D30: -2.281291851 | E30: 39580508383 | F30: 2.493141173 | G30: 40711807388 | H30: 2.858222522 | I30: 46979586776
A31: All Other Unsecured Loans/Lines of Credit | B31: 26834844869 | C31: 26240512457 | D31: -2.214778639 | E31: 27151651441 | F31: 3.472260633 | G31: 28237330207 | H31: 3.998573598 | I31: 34066191880
A32: Short-Term, Small Amount Loans (STS) (FCUs only) | B32: 21266442 | C32: 18074261 | D32: -15.01041406 | E32: 21261716 | F32: 17.63532683 | G32: 22418228 | H32: 5.439410441 | I32: 36091584
A33: Non-Federally Guaranteed Student Loans | B33: 2019696696 | C33: 2246667713 | D33: 11.23787633 | E33: 2278419680 | F33: 1.413291641 | G33: 2513639280 | H33: 10.32380479 | I33: 3429115529
A34: New Vehicle Loans | B34: 63285721527 | C34: 64567228984 | D34: 2.024955118 | E34: 66373784933 | F34: 2.79794561 | G34: 69005762360 | H34: 3.965386982 | I34: 96881755601
A35: Used Vehicle Loans | B35: 115198799497 | C35: 116903083390 | D35: 1.479428519 | E35: 121266901888 | F35: 3.732851497 | G35: 124986892771 | H35: 3.067606103 | I35: 158636292862
A36: 1st Mortgage Real Estate Loans/Lines of Credit | B36: 246224521348 | C36: 248487781528 | D36: 0.9191855334 | E36: 253889999424 | F36: 2.174037638 | G36: 262294502972 | H36: 3.310293264 | I36: 315530527277
A37: Other Real Estate Loans/Lines of Credit | B37: 73967574638 | C37: 72116693308 | D37: -2.50228744 | E37: 71123688007 | F37: -1.376942363 | G37: 70854337017 | H37: -0.3787078504 | I37: 73464211746
A38: Leases Receivable | B38: 543126597 | C38: 609072063 | D38: 12.14182225 | E38: 704138764 | F38: 15.60844878 | G38: 715089248 | H38: 1.555159943 | I38: 1145906341
A39: Total All Other Loans/Lines of Credit | B39: 29910794221 | C39: 30039993222 | D39: 0.4319477445 | E39: 31293054149 | F39: 4.171308954 | G39: 32160756581 | H39: 2.772827567 | I39: 39285035741
A40: TOTAL LOANS | B40: 597525609833 | C40: 599846821175 | D40: 0.3884706034 | E40: 613683408385 | F40: 2.306686761 | G40: 631502536052 | H40: 2.903635233 | I40: 769454715337
A41: (ALLOWANCE FOR LOAN & LEASE LOSSES) | B41: 8102885989 | C41: 7876555717 | D41: -2.793205684 | E41: 7678973920 | F41: -2.508479646 | G41: 7529150121 | H41: -1.95109139 | I41: 7120762551
A42: Foreclosed Real Estate | B42: 1331050121 | C42: 1280957720 | D42: -3.763374512 | E42: 1144526065 | F42: -10.65075395 | G42: 1073827221 | H42: -6.177128347 | I42: 741556750
A43: Repossesed Autos | B43: 161640452 | C43: 159858279 | D43: -1.102553833 | E43: 152736210 | F43: -4.455239381 | G43: 170825859 | H43: 11.84371997 | I43: 220737852
A44: Foreclosed and Repossessed Other Assets | B44: 21602526 | C44: 22517915 | D44: 4.237416495 | E44: 20549227 | F44: -8.742763262 | G44: 21147833 | H44: 2.91303415 | I44: 29523742
A45: TOTAL FORECLOSED and REPOSSESSED ASSETS 1 | B45: 1514293099 | C45: 1463333914 | D45: -3.365212787 | E45: 1317811502 | F45: -9.944580017 | G45: 1265800913 | H45: -3.946739645 | I45: 991818344
A46: Land and Building | B46: 17660938400 | C46: 17742449181 | D46: 0.4615314269 | E46: 17880117292 | F46: 0.7759250687 | G46: 18042625284 | H46: 0.9088754248 | I46: 19454725121
A47: Other Fixed Assets | B47: 3461182697 | C47: 3489703408 | D47: 0.8240163406 | E47: 3502526820 | F47: 0.3674642369 | G47: 3531917719 | H47: 0.8391341597 | I47: 4055474362
A48: NCUA Share Insurance Capitalization Deposit | B48: 8295737730 | C48: 8316467780 | D48: 0.2498879626 | E48: 8379801549 | F48: 0.7615464964 | G48: 8423694401 | H48: 0.5237934543 | I48: 9057581435
A49: Identifiable Intangible Assets | I49: 183232275
A50: Goodwill | B50: 195700632 | C50: 195338851 | D50: -0.1848645026 | E50: 187976290 | F50: -3.769122713 | G50: 181274420 | H50: -3.56527411 | I50: 752895144
A51: TOTAL INTANGIBLE ASSETS | B51: 691514863 | C51: 698257090 | D51: 0.9749937942 | E51: 697373390 | F51: -0.1265579702 | G51: 697329971 | H51: -0.006226076392 | I51: 936127419
A52: Accrued Interest on Loans | B52: 887215495 | C52: 893595941 | D52: 0.7191540315 | E52: 885349680 | F52: -0.9228176429 | G52: 878604391 | H52: -0.7618785156 | I52: 2159043836
A53: Accrued Interest on Investments | B53: 1906520702 | C53: 1882894734 | D53: -1.239219064 | E53: 1900102673 | F53: 0.9139087114 | G53: 1894935022 | H53: -0.2719669349 | I53: 761755119
A54: Non-Trading Derivative Assets, net | B54: 855012097 | C54: 866219789 | D54: 1.310822623 | E54: 856247306 | F54: -1.15126474 | G54: 840158916 | H54: -1.87894197 | I54: 100103657
A55: All Other Assets | B55: 11273197965 | C55: 13315901524 | D55: 18.12000078 | E55: 14177798235 | F55: 6.472687632 | G55: 14553016011 | H55: 2.646516545 | I55: 18716785745
A56: TOTAL OTHER ASSETS | B56: 14034730764 | C56: 16065016047 | D56: 14.46615056 | E56: 16934148214 | F56: 5.410092119 | G56: 17288109949 | H56: 2.090224619 | I56: 21737688357 | L56: Non-Earn/A | M56: =SUM(I11,I45:I48,I51,I56)/$I$58 -> 0.05576737035
A58: TOTAL ASSETS | B58: 1021774874741 | C58: 1055356116226 | D58: 3.286559722 | E58: 1056034690575 | F58: 0.06429813961 | G58: 1056595903604 | H58: 0.05314342739 | I58: 1180403540199
A59: TOTAL CU's | B59: 6819 | C59: 6753 | D59: -0.9678838539 | E59: 6681 | F59: -1.066192803 | G59: 6620 | H59: -0.9130369705 | I59: 6090
A60: # Means the number is too large to display in the cell
A61: 1 OTHER RE OWNED PRIOR TO 2004
A62: 2 LOANS TO, DEPOSITS IN, AND INVESTMENTS IN NATURAL PERSON CUs INCLUDED IN ALL OTHER INVESTMENTS PRIOR TO JUNE 2006 FOR SHORT FORM FILERS
